Cogmind - Beta 16 @@@ ROGUE MODE // 2026.01.02 @ 01:51:08 Player: H3-MLN Result: Smashed by cave-in Performance ------------- Evolutions (0) 0 Regions Visited (2) 400 Robots Destroyed (30) 150 Value Destroyed (1014) 1014 Prototype IDs (12) 240 Alien Tech Used (0) 0 Bonus (-91) -91 TOTAL SCORE: 1713 Bonus ------- Friendly Fire -91 Cogmind --------- Core Integrity 0/250 Matter 0/300 Energy 159/160 System Corruption 0% Temperature Cool (0) Movement Rolling (110) Location -10/Subcaves Parts ------- > --- POWER (1) -------- Light Nuclear Core > --- PROPULSION (2) --- Light Treads Subdweller Monowheel > --- UTILITY (2) ------ Cobbler Unit > --- WEAPON (2) ------- Battle Cannon > --- INVENTORY (5) ---- Makeshift Hacking Suite Battle Cannon Grenade Launcher Multitool Enhanced Flamer Peak State ------------ > --- POWER ------------ Light Nuclear Core > --- PROPULSION ------- Light Treads Wheel > --- UTILITY ---------- Cobbler Unit > --- WEAPON ----------- Makeshift Laser Battle Cannon > --- INVENTORY -------- Makeshift Thermal Plating Makeshift Hacking Suite Battle Cannon Grenade Launcher Multitool [Rating: 16] Favorites ----------- Power Subdweller Power Source Engine Subdweller Power Source Power Core Light Nuclear Core Propulsion Light Treads Treads Light Treads Wheel Subdweller Monowheel Utility Scrap Shield Device Cobbler Unit Storage Small Storage Unit Protection Scrap Shield Weapon Battle Cannon Energy Gun Subdweller Laser Energy Cannon Subdweller Beam Cannon Ballistic Gun Subdweller Machine Gun Ballistic Cannon Battle Cannon Launcher Grenade Launcher Special Weapon Multitool Build | -11 -10 -10 ------- Run | Yrd Mat Sub Slots Evolved . | . . . Power . | . . . Propulsion . | . . . Utility . | . . . Weapon . | . . . Parts Attached 49 | 8 1 40 Power 5 | 1 . 4 Engine 4 | 1 . 3 Core 1 | . . 1 Reactor . | . . . Propulsion 11 | 2 . 9 Treads 2 | 1 . 1 Leg . | . . . Wheel 9 | 1 . 8 Hover . | . . . Flight . | . . . Utility 10 | 2 . 8 Device 4 | 1 . 3 Storage 2 | 1 . 1 Processor . | . . . Hackware . | . . . Protection 4 | . . 4 Artifact . | . . . Weapon 23 | 3 1 19 Energy Gun 11 | 2 . 9 Energy Cannon 3 | . 1 2 Ballistic Gun 4 | 1 . 3 Ballistic Cannon 3 | . . 3 Launcher 1 | . . 1 Special Weapon 1 | . . 1 Impact Weapon . | . . . Slashing Weapon . | . . . Piercing Weapon . | . . . Special Melee Weapon . | . . . Unidentified Prototypes . | . . . Parts Lost 5 | . . 5 Power 1 | . . 1 Propulsion 1 | . . 1 Utility 2 | . . 2 Weapon 1 | . . 1 Highest Loss Streak 1 | . . 1 To Critical Strikes . | . . . Average Backups 5 | 3 7 5 Power . | . 1 . Propulsion . | 1 3 . Utility 2 | . . 2 Weapon 1 | 1 3 1 Tool/Special . | . . . Unused Backups 8 | . . 8 Power . | . . . Propulsion 2 | . . 2 Utility 3 | . . 3 Weapon 3 | . . 3 Tool/Special . | . . . Average Slot Usage (%) 86 | . 100 85 Engine 7 | . 14 7 Core 6 | . . 6 Treads 14 | . 14 14 Wheel 13 | . 14 13 Device 5 | . 14 4 Storage 1 | . 14 1 Protection 8 | . . 8 Energy Gun 4 | . 7 4 Energy Cannon 9 | . 7 9 Ballistic Gun 6 | . 14 6 Ballistic Cannon 6 | . . 6 Peak Build Rating 16 | 7 7 16 Average Rating 13 | 5 7 13 On Entrance 4 | . 7 7 Avg Prop Armor Cover (%) 7 | 14 12 7 Naked Turns . | . . . Heaviest Build 35 | 13 14 35 Greatest Support 20 | 20 16 20 Greatest Overweight (x) 11 | . . 11 Average Overweight (x) 1 | . . 1 Largest Inventory Capacity 10 | 8 8 10 Average Capacity 5 | 7 8 5 Most Carried 8 | 6 8 8 Average Carried 5 | 3 7 5 Final Capacity 8 | 8 8 5 Final Carried 8 | 6 8 5 Class Distribution -------------------- 45% | Mutant 44% | Subdweller-Mutant 10% | Scavenger-Mutant Dominant Class ---------------- Mutant | -10/Materials Subdweller-Mutant | -10/Subcaves Resources | -11 -10 -10 ----------- Run | Yrd Mat Sub Matter Collected 1496 | 298 . 1198 Remotely . | . . . Salvage Created 1282 | 68 . 1214 Parts 87 | 6 . 81 Haulers Intercepted . | . . . Recyclers Shooed . | . . . Parts Field Recycled . | . . . Retrieved Matter . | . . . Parts Self-Destructed 3 | . . 3 Prevented . | . . . Parts Restored . | . . . Kills | -11 -10 -10 ------- Run | Yrd Mat Sub Combat Hostiles Destroyed 28 | . . 28 Guns 8 | . . 8 Cannons 16 | . . 16 AOE 4 | . . 4 Classes Destroyed 7 | 2 . 5 Tunneler 1 | 1 . . Recycler 1 | 1 . . Swarmer 4 | . . 4 Grunt 2 | . . 2 Artisan 4 | . . 4 Cobbler 2 | . . 2 Subdweller 22 | . . 22 Best Kill Streak 4 | 2 . 4 Combat Bots Only 4 | . . 4 Max Kills in Single Turn 2 | 1 . 2 Gunslinging . | . . . Exploded 2 | . . 2 Melee . | . . . Uniques/NPCs Destroyed . | . . . Combat | -11 -10 -10 -------- Run | Yrd Mat Sub Hostile Shots Fired 133 | . . 133 Missed 40 | . . 40 Hits 93 | . . 93 Projectile 93 | . . 93 AOE 1 | . . 1 Critical Strikes 1 | . . 1 Damage Taken 2016 | . . 2016 Core 277 | . . 277 Absorbed by Shields . | . . . Core Remaining (%) 100 | 100 . . Volleys Fired 244 | 7 . 237 Largest 2 | 2 . 2 Hottest 150 | 90 . 150 Shots Fired 321 | 14 . 307 Gun 190 | 14 . 176 Cannon 121 | . . 121 Launcher 3 | . . 3 Special 7 | . . 7 Kinetic 95 | 6 . 89 Thermal 223 | 8 . 215 Explosive 3 | . . 3 Electromagnetic . | . . . Robot Hit Streak 15 | 4 . 15 Robot Miss Streak 2 | 2 . 2 Penetration Max . | . . . Secondary Targets . | . . . Shots Hit Robots 168 | 8 . 160 Core Hits 61 | 3 . 58 Critical Kills . | . . . Critical Parts Destroyed . | . . . Critical Strikes . | . . . Melee Attacks . | . . . Impact . | . . . Slashing . | . . . Piercing . | . . . Sneak Attacks . | . . . Combat Hostiles . | . . . Follow-up Attacks . | . . . Damage Inflicted 3724 | 101 . 3623 Guns 1612 | 101 . 1511 Cannons 1828 | . . 1828 Explosions 250 | . . 250 Melee . | . . . Ramming . | . . . Kinetic 1031 | 38 . 993 Thermal 2443 | 63 . 2380 Explosive 250 | . . 250 Electromagnetic . | . . . Impact . | . . . Slashing . | . . . Piercing . | . . . Highest Corruption . | . . . Average Corruption . | . . . Corruption Purged . | . . . Corruption Blocked . | . . . Overload Shots 29 | . . 29 Effects 9 | . . 9 Energy Bleed 2 | . . 2 Heat Surge 6 | . . 6 Short Circuit 1 | . . 1 Overflow Damage 26 | . . 26 Projectiles 5 | . . 5 Explosions 21 | . . 21 Melee . | . . . Knockbacks 7 | . . 7 Impact . | . . . Kinetic 7 | . . 7 Secondary . | . . . Self-Inflicted Damage 51 | . . 51 Shots 3 | . . 3 Rammed . | . . . Targets Rammed . | . . . Kicked . | . . . Crushed . | . . . Highest Temperature 742 | 64 . 742 Average Temperature 110 | 33 . 121 Received Heat Transfer 363 | . . 363 Effects 6 | . . 6 Shutdowns 1 | . . 1 Interference 1 | . . 1 Short Circuit 2 | . . 2 Damage (minor) 1 | . . 1 Damage (core) 1 | . . 1 Siege Activations . | . . . Martial Activations . | . . . Shielding Activations . | . . . Robots Disrupted . | . . . Combat Hostiles . | . . . Robots Corrupted . | . . . Combat Hostiles . | . . . Parts Fried . | . . . Impact Corruptions . | . . . Robots Melted . | . . . Combat Hostiles . | . . . Parts Melted . | . . . Heat Transferred 3670 | 173 . 3497 Parts Sabotaged . | . . . Parts Stolen . | . . . Parts Stripped . | . . . Power Chain Reactions . | . . . Alert | -11 -10 -10 ------- Run | Yrd Mat Sub Maximum Alert Level . | . . . Low Security (%) 100 | 100 100 . Level 1 . | . . . Level 2 . | . . . Level 3 . | . . . Level 4 . | . . . Level 5 . | . . . High Security . | . . . Max Security . | . . . Peak Influence 10 | 10 . . Initial . | . . . Average . | . . . Influence Increases 200 | 10 . 190 Destroy 0b10 Robot/C 120 | . . 120 Destroy 0b10 Robot/NC 10 | 10 . . Destroy Leader 10 | . . 10 Lose Combat Pursuer 60 | . . 60 Influence Decreases 83 | 10 . 73 Time Decay 73 | 10 . 63 Lost Part 10 | . . 10 Squads Dispatched . | . . . Investigation . | . . . Extermination . | . . . Reinforcement . | . . . Assault . | . . . Garrison . | . . . Intercept . | . . . Searches Triggered . | . . . Construction Impeded . | . . . Haulers Reinforced . | . . . Active Scanning Responses . | . . . Cargo Convoy Interrupts . | . . . Stealth | -11 -10 -10 --------- Run | Yrd Mat Sub Distress Signals . | . . . Communications Jammed . | . . . Distress Signals . | . . . Times Spotted 31 | . . 31 Peak Tracking Total 6 | . . 6 Tactical Retreats 2 | . . 2 Traps | -11 -10 -10 ------- Run | Yrd Mat Sub Traps Triggered 1 | . . 1 Indirectly . | . . . Trap Hack Attempts . | . . . Triggered . | . . . Disarmed . | . . . Reprogrammed . | . . . Reused . | . . . Traps Extracted . | . . . Installed 1 | . . 1 Triggered . | . . . Most Traps Carried 1 | . . 1 Machines | -11 -10 -10 ---------- Run | Yrd Mat Sub Machines Disabled 1 | . . 1 Max in Single Turn 1 | . . 1 Machines Repaired . | . . . Machines Dismantled . | . . . Machines Sabotaged . | . . . Overloaded Fab Kills . | . . . Hacking | -11 -10 -10 --------- Run | Yrd Mat Sub Machines Accessed 4 | . . 4 Terminals . | . . . Fabricators . | . . . Repair Stations . | . . . Recycling Units . | . . . Scanalyzers . | . . . Garrison Access . | . . . Total Hacks 7 | . . 7 Successful 7 | . . 7 Failed . | . . . Catastrophic . | . . . Database Lockouts . | . . . Manual . | . . . Terminals . | . . . Fabricators . | . . . Repair Stations . | . . . Recycling Units . | . . . Scanalyzers . | . . . Garrison Access . | . . . Terminal Hacks 7 | . . 7 Record 4 | . . 4 Open Door 1 | . . 1 Proto ID Catalog 1 | . . 1 Release Object 1 | . . 1 Fabricator Hacks . | . . . Repair Station Hacks . | . . . Recycling Unit Hacks . | . . . Scanalyzer . | . . . Garrison Access Hacks . | . . . Unauthorized Hacks . | . . . Terminals . | . . . Fabricators . | . . . Repair Stations . | . . . Recycling Units . | . . . Scanalyzers . | . . . Garrison Access . | . . . Data Cores Recovered . | . . . Used . | . . . Hacking Detections . | . . . Full Trace Events . | . . . Feedback Events . | . . . Feedback Blocked . | . . . Robot Schematics Acquired . | . . . Robots Built . | . . . Authchips . | . . . Time . | . . . Total Robot Build Rating . | . . . Part Schematics Acquired . | . . . Parts Built . | . . . Authchips . | . . . Time . | . . . Total Part Build Rating . | . . . Part Studies Acquired . | . . . Parts Repaired . | . . . Time . | . . . Parts Recycled . | . . . Recycled Matter . | . . . Retrieved Matter . | . . . Retrieved Components . | . . . Parts Scanalyzed . | . . . Part Schematics Acquired . | . . . Parts Damaged . | . . . Bothacking | -11 -10 -10 ------------ Run | Yrd Mat Sub Used RIF Installer . | . . . Robots Hacked . | . . . Non-combat . | . . . Combat . | . . . Robot Hacks Applied . | . . . Relay Couplers Released . | . . . Fabnet Peak Effective % . | . . . Robots Rewired . | . . . Allies Hacked . | . . . Hacks Repelled . | . . . Allies | -11 -10 -10 -------- Run | Yrd Mat Sub Total Allies . | . . . Largest Group . | . . . Highest-Rated Group . | . . . Highest-Rated Ally . | . . . Total Orders . | . . . Ally Attacks . | . . . Total Damage . | . . . Kills . | . . . Allies Corrupted . | . . . Allies Melted . | . . . Intel | -11 -10 -10 ------- Run | Yrd Mat Sub Active Infowar (turns) 464 | 36 173 255 Optics 119 | . . 119 Seismic 345 | 36 173 136 Robot Analysis Total . | . . . Derelict Logs Recovered 2 | . . 2 Drone Launches . | . . . Drone Recoveries . | . . . Exploration | -11 -10 -10 ------------- Run | Yrd Mat Sub Turns Passed 6998 | 99 173 6726 Spaces Moved 4034 | 60 167 3807 Core 13 | 2 . 11 Treads 110 | 2 . 108 Legs . | . . . Wheels 3911 | 56 167 3688 Hover . | . . . Flight . | . . . Fastest Speed 50 | 50 100 95 Average Speed 118 | 100 100 119 Slowest Speed 600 | 160 100 600 Overloaded Moves . | . . . Propulsion Burnouts . | . . . Robots Hopped . | . . . Potential Cave-ins 19 | . . 19 Cave-ins Triggered 1 | . . 1 Exploration Rate (%) 41 | 4 25 94 Regions Visited 2 Branch Regions 1 Pre-discovered Areas . | . . . Known Exits Taken . | . . . Unknown Exits Taken 2 | 1 1 . Scrap Searched 1 | . . 1 Spaces Dug 59 | . . 59 Terrain Destroyed 80 | . . 80 Melee . | . . . Projectile 67 | . . 67 AOE 13 | . . 13 Terrain Rammed . | . . . Walls Destroyed . | . . . Machines Disabled . | . . . Actions | -11 -10 -10 --------- Run | Yrd Mat Sub Total 5945 | 80 172 5693 Wait 1507 | . 3 1504 Move 4031 | 59 166 3806 Hop . | . . . Pick Up 32 | 6 2 24 Fast Attach 25 | 7 . 18 Attach 10 | . . 10 Detach 2 | . . 2 Swap 22 | 1 1 20 Drop 49 | . . 49 Fire 244 | 7 . 237 Melee . | . . . Ram . | . . . Kick . | . . . Crush . | . . . Escape Stasis . | . . . Rewire . | . . . Trap 1 | . . 1 Miscellaneous 22 | . . 22 Route ------- -11/Scrapyard -10/Materials (discovered 2 exits: [*Min] / *Sub) -10/Subcaves (discovered 2 exits: [*Mat x2]) History --------- Turn | Location | Event 26 | -11/Scrapyard | Discovered new exit (range 15) 100 | -11/Scrapyard | Entered Materials 219 | -10/Materials | Discovered new exit (range 15) 267 | -10/Materials | Discovered new exit (range 7) 273 | -10/Materials | Entered Subcaves 274 | -10/Subcaves | Approached by a straggling Scientist 303 | -10/Subcaves | Build established: Mutant 489 | -10/Subcaves | Discovered new exit (range 15) 874 | -10/Subcaves | Build established: Subdweller-Mutant 1216 | -10/Subcaves | Discovered new exit (range 9) 1549 | -10/Subcaves | Learned location of 1 exit from Materials 1834 | -10/Subcaves | Ambushed by Subdweller buried in earth 1848 | -10/Subcaves | Ambushed by Subdweller buried in earth 2120 | -10/Subcaves | Ambushed by angry Subdweller bent on revenge 2287 | -10/Subcaves | Ambushed by angry Subdweller bent on revenge 2370 | -10/Subcaves | Shifting Twisted Machinery released Sub. Laser 2496 | -10/Subcaves | Visited 4L-MR0's lab 2507 | -10/Subcaves | Found Power Bank 2672 | -10/Subcaves | Shifting Twisted Machinery released Sub. Monowheel 2673 | -10/Subcaves | Shifting Twisted Machinery released Sub. Beam Cannon 2716 | -10/Subcaves | Visited Clippyterm 2719 | -10/Subcaves | Learned Factory stockpile data 3410 | -10/Subcaves | Core integrity fell below 50% 4325 | -10/Subcaves | Build established: Scavenger-Mutant 4631 | -10/Subcaves | Build established: Mutant 6123 | -10/Subcaves | Shifting Twisted Machinery released Sub. Machine Gun 6496 | -10/Subcaves | Ambushed by Subdweller buried in earth 6530 | -10/Subcaves | Ambushed by Subdweller buried in earth 6743 | -10/Subcaves | Ambushed by Subdweller buried in earth 6744 | -10/Subcaves | Ambushed by Subdweller buried in earth 6797 | -10/Subcaves | Core integrity fell below 20% 6999 | -10/Subcaves | Crushed by falling debris 6999 | -10/Subcaves | Smashed by cave-in Last Messages --------------- 06762_ Acquired 19 matter. 06774_ Acquired 42 matter. 06785_ Overload: Heat surge (+158). 06787_ Overload: Energy bleed (-56). 06788_ Overheating: Lgt. Nuclear Core damaged (-11). 06789_ Overload: Heat surge (+123). 06792_ Power failure, Lgt. Nuclear Core shutdown. 06797_ Overheating: Core damaged (-35). 06798_ Mak. Laser broken. 06798_ Overheating: Short circuit. 06808_ Subatomizers dissect the Sub. Power Source, destroying it. 06818_ Dropped Broken Mak. Laser. 06838_ Dropped Mak. Thermal Plating. 06838_ Acquired Cobbler Unit. 06875_ Cobbler Unit puts together Enh. Flamer. 06915_ Cobbler Unit puts together Multitool. 06955_ Cobbler Unit puts together Battle Rifle. 06983_ Subatomizers dissect the Sub. Optics. 06999_ The unstable cave ceiling collapses. 06999_ Crushed by falling debris. Map ----- +----------------------------------------------------+ | ?## "" #????????????????????????????????##^ | | ??## "" #?????????????????????????????????## | | ???##""### ##??????????????????????????????????## | | ????####?###???????????????????????????????????## | | ???????????????????????????????????????????????# | | ????????????????????????????????????############ | | ??????????????????????????????????### ## # ## | | ?????????????????????????????????## | | ?????????????????????????????????# ### # #### ## | | ?????????????????????????????????## #######??###? | | ?????????????????????????????????## ## # ####????? | | ?????????????????????????????????# ## !##???? | | ?????????????????????????????????# # ##??? | | ????????????????????????????????### # # ##?# | | ????????????????????????????????# # | ## | | ???????????????????????????????## [ | | ??????????????????????????????## | | ?????????????????????????????## ;; ## | | ????????????????????????##??## ; ;;### | | ????????????????????????#"###&= [! = #### ## | | ?????????????????????????# # &! ! # #?## #? | | ???????????????????????#### *!& | * ! #??# ## | | ???????????????????????# [ ! !""##??## | | ???????????????????????## # = "##????### | | ????????????????????????# ##### ##???????## | | ???????????????????????##@###???# #?????????# | | ?????????????????????### ##?????######?????????## | | ?????????????????????# ##??????????????????????# | | ????????????????????## ##???????????????????????# | | ????????????????????#;##??????????????????????### | | ????????????????????###??????????????????????## | | ?????????????????????????????????????????????# | | ?????????????????????????????????????????????## | | ??????????????????????????????????????????????# | | ??????????????????????????????????????????????# | | ??????????????????????????????????????????????## | | ???????????????????????????????????????????????# | | ??????????????????????????????????????????????## | | ??????????????????????????????????????????????# | | ??????????????????????????????????????????????# | | ??????????????????????????????????????????????# | | ??????????????????????????????????????????????## | | ??????????????????????????????######???????????# | | ?????????????????????????????##" !#??????????## | | ?????????????????????????????# ["##??????????# | | ?????????????????????????????# #######????????## | | ?????????????????????????????#" ! # #????????# | | ?????????????????????????????###[## #????????# | | ?????????????????????????????##" " #######???## | | ?????????????????????????????# ## # ##???# | +----------------------------------------------------+ Best States ------------- Heat Dissipation 25 Coolant Potential 50 Energy Generation 15 Energy Capacity 200 Matter Stores 300 Matter Capacity 300 Sight Range 21 Terrain Scan Density 10 Armor Coverage 800 Resistance: TH 10 Evasion (%) 41 Recoil Reduction 1 Item Schematics ----------------- None Robot Schematics ------------------ None Fabricated ------------ Nothing Repaired ---------- Nothing Studied --------- None Alien Tech Used ----------------- None Achievements -------------- None Challenges ------------ None Game ------ Seed WeaponReactiveTendrils Manual? 0 Play Time 00:37:01 Cumulative 1193.1 hours Start 2026.01.02 @ 01:14:59 End 2026.01.02 @ 01:51:08 Sessions 1 Manual Loads 0 Difficulty Rogue Special Mode None Game No. 416 Rogue 411 Adventurer 4 Explorer 1 Win Type - Total 25 Types 13/5/1/2/0/1/0/0/2/1 Lore% 97 Gallery% 96 Achievement% 82 Wizard Run 0 Options --------- Layout 0 ASCII 0 Keyboard 0 Movement Numpad Keybinds 0 Fullscreen 2 Font 18/SmallcapsGlow Map View 76x50 Zoom Use 0% Tactical HUD 1 Map Filters NONE Filters NONE Steam 1 RUN: d664f223-cb64-4830-9d93-5cbd6a92f24d